[Event "Titled Tuesday Blitz January 17 Early 2023"]
[White "Kukula, Pawel"]
[Black "Klose, Eli"]
[WhiteFideId "1115081"]
[BlackFideId "16242955"]
[WhiteElo "2135"]
[BlackElo "1519"]
[Result "1-0"]
[Round "07"]
[TimeControl "180+2"]
[Date "2023.01.17"]
[WhiteClock "0:00:11"]
[BlackClock "0:00:10"]

1. c4 {[%clk 0:03:00]}  Nf6 {[%clk 0:02:58]} 2. Nc3 {[%clk 0:02:53]}  c5 {[%clk 0:02:58]} 3. Nf3 {[%clk 0:02:52]}  Nc6 {[%clk 0:02:59]} 4. d4 {[%clk 0:02:51]}  cxd4 {[%clk 0:02:58]} 5. Nxd4 {[%clk 0:02:52]}  d6 {[%clk 0:02:59]} 6. g3 {[%clk 0:02:49]}  Bd7 {[%clk 0:02:56]} 7. Bg2 {[%clk 0:02:49]}  g6 {[%clk 0:02:46]} 8. O-O {[%clk 0:02:49]}  Bg7 {[%clk 0:02:45]} 9. b3 {[%clk 0:02:46]}  O-O {[%clk 0:02:45]} 10. Bb2 {[%clk 0:02:46]}  Qa5 {[%clk 0:02:45]} 11. Rc1 {[%clk 0:02:38]}  Rfe8 {[%clk 0:02:45]} 12. Nc2 {[%clk 0:02:23]}  Rac8 {[%clk 0:02:43]} 13. Ne3 {[%clk 0:02:17]}  a6 {[%clk 0:02:40]} 14. Qd2 {[%clk 0:02:13]}  b5 {[%clk 0:02:36]} 15. Rfd1 {[%clk 0:02:01]}  bxc4 {[%clk 0:02:29]} 16. Nxc4 {[%clk 0:02:02]}  Qc7 {[%clk 0:02:20]} 17. Na4 {[%clk 0:01:52]}  Rb8 {[%clk 0:01:54]} 18. Ne3 {[%clk 0:01:44]}  Qb7 {[%clk 0:01:37]} 19. Bxf6 {[%clk 0:01:22]}  Bxf6 {[%clk 0:01:33]} 20. Nd5 {[%clk 0:01:22]}  Bd4 {[%clk 0:00:33]} 21. Rxc6 {[%clk 0:01:10]}  Bxc6 {[%clk 0:00:32]} 22. Qxd4 {[%clk 0:01:10]}  Bxd5 {[%clk 0:00:16]} 23. Bxd5 {[%clk 0:01:09]}  Qb4 {[%clk 0:00:16]} 24. Qxb4 {[%clk 0:01:00]}  Rxb4 {[%clk 0:00:17]} 25. Bc4 {[%clk 0:00:58]}  a5 {[%clk 0:00:17]} 26. Nb2 {[%clk 0:00:56]}  Rd8 {[%clk 0:00:17]} 27. e4 {[%clk 0:00:56]}  e6 {[%clk 0:00:14]} 28. Nd3 {[%clk 0:00:54]}  Rb6 {[%clk 0:00:14]} 29. a4 {[%clk 0:00:52]}  Kf8 {[%clk 0:00:14]} 30. Kf1 {[%clk 0:00:50]}  Ke7 {[%clk 0:00:14]} 31. Ke2 {[%clk 0:00:50]}  Rc6 {[%clk 0:00:13]} 32. Kd2 {[%clk 0:00:42]}  Rc7 {[%clk 0:00:14]} 33. Nb2 {[%clk 0:00:40]}  Rb8 {[%clk 0:00:11]} 34. Bb5 {[%clk 0:00:38]}  Rbc8 {[%clk 0:00:11]} 35. Bd3 {[%clk 0:00:32]}  d5 {[%clk 0:00:09]} 36. exd5 {[%clk 0:00:32]}  exd5 {[%clk 0:00:10]} 37. Bb1 {[%clk 0:00:28]}  Kd6 {[%clk 0:00:10]} 38. Nd3 {[%clk 0:00:28]}  Rb8 {[%clk 0:00:10]} 39. Bc2 {[%clk 0:00:26]}  Rbc8 {[%clk 0:00:10]} 40. Rc1 {[%clk 0:00:23]}  h5 {[%clk 0:00:10]} 41. h4 {[%clk 0:00:18]}  Rc6 {[%clk 0:00:09]} 42. b4 {[%clk 0:00:15]}  axb4 {[%clk 0:00:10]} 43. Nxb4 {[%clk 0:00:16]}  Rc4 {[%clk 0:00:10]} 44. Nd3 {[%clk 0:00:16]}  Rb8 {[%clk 0:00:09]} 45. Ra1 {[%clk 0:00:15]}  Ra8 {[%clk 0:00:09]} 46. Bb3 {[%clk 0:00:13]}  Rc7 {[%clk 0:00:08]} 47. Rd1 {[%clk 0:00:12]}  Ra5 {[%clk 0:00:08]} 48. Nf4 {[%clk 0:00:10]}  Rb7 {[%clk 0:00:08]} 49. Bc2 {[%clk 0:00:08]}  Ke5 {[%clk 0:00:08]} 50. Re1+ {[%clk 0:00:07]}  Kf6 {[%clk 0:00:08]} 51. Re3 {[%clk 0:00:05]}  Rc7 {[%clk 0:00:08]} 52. Rc3 {[%clk 0:00:04]}  Rxc3 {[%clk 0:00:07]} 53. Kxc3 {[%clk 0:00:05]}  Ke5 {[%clk 0:00:08]} 54. Nd3+ {[%clk 0:00:05]}  Kd6 {[%clk 0:00:07]} 55. Bb3 {[%clk 0:00:05]}  Ra8 {[%clk 0:00:07]} 56. Nf4 {[%clk 0:00:03]}  Kc5 {[%clk 0:00:07]} 57. Nxd5 {[%clk 0:00:02]}  Re8 {[%clk 0:00:06]} 58. Nf4 {[%clk 0:00:02]}  Re1 {[%clk 0:00:06]} 59. Nd3+ {[%clk 0:00:03]}  Kb6 {[%clk 0:00:06]} 60. Nxe1 {[%clk 0:00:04]}  Ka5 {[%clk 0:00:06]} 61. Bxf7 {[%clk 0:00:05]}  Kb6 {[%clk 0:00:07]} 62. Bxg6 {[%clk 0:00:06]}  Kc5 {[%clk 0:00:08]} 63. Bxh5 {[%clk 0:00:07]}  Kb6 {[%clk 0:00:01]} 64. Bf3 {[%clk 0:00:06]}  Ka5 {[%clk 0:00:02]} 65. Bg2 {[%clk 0:00:05]}  Kxa4 {[%clk 0:00:03]} 66. Nf3 {[%clk 0:00:06]}  Kb5 {[%clk 0:00:03]} 67. Nd2 {[%clk 0:00:07]}  Ka5 {[%clk 0:00:04]} 68. Ne4 {[%clk 0:00:07]}  Kb5 {[%clk 0:00:05]} 69. h5 {[%clk 0:00:08]}  Kb6 {[%clk 0:00:06]} 70. h6 {[%clk 0:00:09]}  Kc6 {[%clk 0:00:07]} 71. h7 {[%clk 0:00:10]}  Kb7 {[%clk 0:00:07]} 72. h8=Q {[%clk 0:00:10]}  Kc6 {[%clk 0:00:08]} 73. Nd2+ {[%clk 0:00:10]}  Kc5 {[%clk 0:00:08]} 74. Qd4+ {[%clk 0:00:10]}  Kb5 {[%clk 0:00:09]} 75. Qc4+ {[%clk 0:00:11]}  Ka5 {[%clk 0:00:09]} 76. Qb4+ {[%clk 0:00:11]}  Ka6 {[%clk 0:00:09]} 77. Bb7+ {[%clk 0:00:10]}  Ka7 {[%clk 0:00:10]} 78. Bc6 {[%clk 0:00:10]}  Ka6 {[%clk 0:00:10]} 79. Qb7+ {[%clk 0:00:10]}  Ka5 {[%clk 0:00:10]} 80. Nb3# {[%clk 0:00:11]} 1-0


[Site "https://www.chess.com"]

[Event "Titled Tuesday Blitz January 17 Early 2023"]
[White "Womacka, Mathias"]
[Black "Tologon tegin, Semetei"]
[WhiteFideId "4611390"]
[BlackFideId "13800574"]
[WhiteElo "2396"]
[BlackElo "2372"]
[Result "1-0"]
[Round "07"]
[TimeControl "180+2"]
[Date "2023.01.17"]
[WhiteClock "0:01:29"]
[BlackClock "0:00:03"]

1. e4 {[%clk 0:03:00]}  e5 {[%clk 0:02:57]} 2. Nf3 {[%clk 0:03:00]}  Nc6 {[%clk 0:02:54]} 3. Bb5 {[%clk 0:02:59]}  a6 {[%clk 0:02:51]} 4. Bxc6 {[%clk 0:02:59]}  dxc6 {[%clk 0:02:47]} 5. O-O {[%clk 0:02:59]}  Qf6 {[%clk 0:02:44]} 6. d4 {[%clk 0:02:56]}  exd4 {[%clk 0:02:43]} 7. Bg5 {[%clk 0:02:57]}  Qd6 {[%clk 0:02:42]} 8. Nxd4 {[%clk 0:02:57]}  Be7 {[%clk 0:02:33]} 9. Bxe7 {[%clk 0:02:56]}  Nxe7 {[%clk 0:02:33]} 10. Nc3 {[%clk 0:02:56]}  Bd7 {[%clk 0:02:26]} 11. Qd2 {[%clk 0:02:52]}  O-O-O {[%clk 0:02:25]} 12. Rad1 {[%clk 0:02:51]}  f6 {[%clk 0:02:17]} 13. Qe3 {[%clk 0:02:37]}  Qb4 {[%clk 0:02:04]} 14. a3 {[%clk 0:02:27]}  Qb6 {[%clk 0:01:56]} 15. b4 {[%clk 0:02:06]}  c5 {[%clk 0:01:53]} 16. bxc5 {[%clk 0:01:55]}  Qxc5 {[%clk 0:01:54]} 17. Nf5 {[%clk 0:01:55]}  Qe5 {[%clk 0:01:25]} 18. f4 {[%clk 0:01:34]}  Nxf5 {[%clk 0:01:23]} 19. Qa7 {[%clk 0:01:34]}  c6 {[%clk 0:00:07]} 20. fxe5 {[%clk 0:01:31]}  Ne3 {[%clk 0:00:03]} 21. Qxe3 {[%clk 0:01:29]} 1-0


[Site "https://www.chess.com"]

[Event "Titled Tuesday Blitz January 17 Early 2023"]
[White "Sihite, Chelsie Monica Ignesias"]
[Black "Kochetov, Andrey"]
[WhiteFideId "7101198"]
[BlackFideId "24130532"]
[WhiteElo "2266"]
[BlackElo "2165"]
[Result "1-0"]
[Round "07"]
[TimeControl "180+2"]
[Date "2023.01.17"]
[WhiteClock "0:00:22"]
[BlackClock "0:00:02"]

1. c4 {[%clk 0:02:55]}  Nf6 {[%clk 0:02:58]} 2. g3 {[%clk 0:02:54]}  e6 {[%clk 0:02:58]} 3. Bg2 {[%clk 0:02:54]}  d5 {[%clk 0:02:58]} 4. cxd5 {[%clk 0:02:54]}  exd5 {[%clk 0:02:58]} 5. Nf3 {[%clk 0:02:55]}  Bd6 {[%clk 0:02:47]} 6. d4 {[%clk 0:02:55]}  O-O {[%clk 0:02:47]} 7. O-O {[%clk 0:02:56]}  c6 {[%clk 0:02:48]} 8. Nc3 {[%clk 0:02:57]}  Bf5 {[%clk 0:02:45]} 9. Qb3 {[%clk 0:02:55]}  Qb6 {[%clk 0:02:41]} 10. Bg5 {[%clk 0:02:48]}  Nbd7 {[%clk 0:02:39]} 11. Bxf6 {[%clk 0:02:42]}  Nxf6 {[%clk 0:02:39]} 12. e3 {[%clk 0:02:43]}  Rfe8 {[%clk 0:02:09]} 13. Nd2 {[%clk 0:02:40]}  h5 {[%clk 0:02:02]} 14. h3 {[%clk 0:02:36]}  Qc7 {[%clk 0:01:56]} 15. Rac1 {[%clk 0:02:33]}  Qd7 {[%clk 0:01:41]} 16. h4 {[%clk 0:02:08]}  Bh3 {[%clk 0:01:31]} 17. Nf3 {[%clk 0:02:04]}  Ne4 {[%clk 0:01:06]} 18. Nxe4 {[%clk 0:01:55]}  dxe4 {[%clk 0:00:50]} 19. Bxh3 {[%clk 0:01:38]}  Qxh3 {[%clk 0:00:50]} 20. Qxf7+ {[%clk 0:01:38]}  Kh8 {[%clk 0:00:42]} 21. Qxh5+ {[%clk 0:01:37]}  Kg8 {[%clk 0:00:43]} 22. Qh7+ {[%clk 0:01:24]}  Kxh7 {[%clk 0:00:38]} 23. Ng5+ {[%clk 0:01:24]}  Kg6 {[%clk 0:00:39]} 24. Nxh3 {[%clk 0:01:23]}  Kf5 {[%clk 0:00:39]} 25. Kg2 {[%clk 0:01:20]}  b6 {[%clk 0:00:33]} 26. f3 {[%clk 0:01:18]}  c5 {[%clk 0:00:29]} 27. Rcd1 {[%clk 0:01:11]}  Kg6 {[%clk 0:00:21]} 28. g4 {[%clk 0:01:06]}  exf3+ {[%clk 0:00:17]} 29. Rxf3 {[%clk 0:01:07]}  cxd4 {[%clk 0:00:17]} 30. Rxd4 {[%clk 0:01:05]}  Bc5 {[%clk 0:00:16]} 31. Nf4+ {[%clk 0:01:05]}  Kh7 {[%clk 0:00:15]} 32. Rd3 {[%clk 0:01:04]}  Rac8 {[%clk 0:00:13]} 33. g5 {[%clk 0:01:00]}  Re5 {[%clk 0:00:08]} 34. Kh3 {[%clk 0:00:56]}  Rce8 {[%clk 0:00:07]} 35. Nd5 {[%clk 0:00:49]}  Kg6 {[%clk 0:00:03]} 36. Kg4 {[%clk 0:00:48]}  Re4+ {[%clk 0:00:03]} 37. Nf4+ {[%clk 0:00:48]}  Kh7 {[%clk 0:00:03]} 38. Kh5 {[%clk 0:00:42]}  Bxe3 {[%clk 0:00:03]} 39. Ng6 {[%clk 0:00:28]}  Bc5 {[%clk 0:00:02]} 40. Rd7 {[%clk 0:00:26]}  a5 {[%clk 0:00:02]} 41. Rff7 {[%clk 0:00:24]}  Rg8 {[%clk 0:00:02]} 42. Nf4 {[%clk 0:00:22]}  Re5 {[%clk 0:00:01]} 43. Kg4 {[%clk 0:00:22]}  Ree8 {[%clk 0:00:01]} 44. h5 {[%clk 0:00:23]}  Kh8 {[%clk 0:00:01]} 45. h6 {[%clk 0:00:23]}  Be3 {[%clk 0:00:01]} 46. Ng6+ {[%clk 0:00:20]}  Kh7 {[%clk 0:00:02]} 47. Rxg7+ {[%clk 0:00:21]}  Rxg7 {[%clk 0:00:02]} 48. Rxg7# {[%clk 0:00:22]} 1-0


[Site "https://www.chess.com"]

[Event "Titled Tuesday Blitz January 17 Early 2023"]
[White "Djokovic, Nebojsa"]
[Black "Jovic, Stanoje"]
[WhiteFideId "938300"]
[BlackFideId "905020"]
[WhiteElo "2119"]
[BlackElo "2075"]
[Result "1/2-1/2"]
[Round "07"]
[TimeControl "180+2"]
[Date "2023.01.17"]
[WhiteClock "0:00:05"]
[BlackClock "0:00:41"]

1. c4 {[%clk 0:03:00]}  e5 {[%clk 0:02:59]} 2. Nc3 {[%clk 0:03:00]}  Nf6 {[%clk 0:02:58]} 3. Nf3 {[%clk 0:02:59]}  Nc6 {[%clk 0:02:58]} 4. d3 {[%clk 0:02:56]}  Bb4 {[%clk 0:02:55]} 5. Bd2 {[%clk 0:02:55]}  O-O {[%clk 0:02:54]} 6. g3 {[%clk 0:02:55]}  Bxc3 {[%clk 0:02:50]} 7. Bxc3 {[%clk 0:02:24]}  e4 {[%clk 0:02:50]} 8. dxe4 {[%clk 0:02:21]}  Nxe4 {[%clk 0:02:47]} 9. Qc2 {[%clk 0:02:14]}  Nxc3 {[%clk 0:02:38]} 10. Qxc3 {[%clk 0:02:14]}  d6 {[%clk 0:02:35]} 11. Bg2 {[%clk 0:02:14]}  Re8 {[%clk 0:02:34]} 12. e3 {[%clk 0:02:13]}  Ne5 {[%clk 0:02:28]} 13. O-O {[%clk 0:02:00]}  Qf6 {[%clk 0:02:24]} 14. Nd4 {[%clk 0:01:46]}  c6 {[%clk 0:02:20]} 15. Rad1 {[%clk 0:01:34]}  h5 {[%clk 0:02:20]} 16. h4 {[%clk 0:01:31]}  Bg4 {[%clk 0:02:17]} 17. Rd2 {[%clk 0:01:27]}  c5 {[%clk 0:02:12]} 18. Nb5 {[%clk 0:01:25]}  Nf3+ {[%clk 0:02:05]} 19. Bxf3 {[%clk 0:01:23]}  Qxf3 {[%clk 0:02:03]} 20. e4 {[%clk 0:01:09]}  a6 {[%clk 0:01:52]} 21. Qxf3 {[%clk 0:00:58]}  Bxf3 {[%clk 0:01:48]} 22. Nc7 {[%clk 0:00:59]}  Bxe4 {[%clk 0:01:34]} 23. Nxa8 {[%clk 0:00:57]}  Rxa8 {[%clk 0:01:33]} 24. Rxd6 {[%clk 0:00:55]}  Bc6 {[%clk 0:01:28]} 25. Re1 {[%clk 0:00:54]}  Kf8 {[%clk 0:01:23]} 26. Re5 {[%clk 0:00:54]}  g6 {[%clk 0:01:22]} 27. Rxc5 {[%clk 0:00:49]}  Re8 {[%clk 0:01:21]} 28. Rdxc6 {[%clk 0:00:49]}  bxc6 {[%clk 0:01:21]} 29. Rxc6 {[%clk 0:00:50]}  Re2 {[%clk 0:01:17]} 30. Rb6 {[%clk 0:00:48]}  a5 {[%clk 0:01:12]} 31. a3 {[%clk 0:00:40]}  Rc2 {[%clk 0:01:09]} 32. Rb5 {[%clk 0:00:33]}  a4 {[%clk 0:01:06]} 33. Kg2 {[%clk 0:00:30]}  Ke7 {[%clk 0:01:06]} 34. Rb4 {[%clk 0:00:28]}  Kd6 {[%clk 0:01:04]} 35. Kf3 {[%clk 0:00:21]}  f6 {[%clk 0:00:57]} 36. Rb6+ {[%clk 0:00:20]}  Ke5 {[%clk 0:00:55]} 37. Rb4 {[%clk 0:00:16]}  Kd6 {[%clk 0:00:53]} 38. c5+ {[%clk 0:00:04]}  Ke5 {[%clk 0:00:50]} 39. Rxa4 {[%clk 0:00:02]}  Rxb2 {[%clk 0:00:49]} 40. Rb4 {[%clk 0:00:02]}  Rc2 {[%clk 0:00:48]} 41. Rb5 {[%clk 0:00:03]}  Rc3+ {[%clk 0:00:48]} 42. Kg2 {[%clk 0:00:02]}  Rxa3 {[%clk 0:00:48]} 43. Rb6 {[%clk 0:00:01]}  Rc3 {[%clk 0:00:47]} 44. c6 {[%clk 0:00:02]}  g5 {[%clk 0:00:45]} 45. hxg5 {[%clk 0:00:02]}  fxg5 {[%clk 0:00:46]} 46. Rb5+ {[%clk 0:00:02]}  Kf6 {[%clk 0:00:45]} 47. Rb6 {[%clk 0:00:03]}  Kf5 {[%clk 0:00:44]} 48. Rb5+ {[%clk 0:00:03]}  Kf6 {[%clk 0:00:44]} 49. Rb6 {[%clk 0:00:03]}  Kf5 {[%clk 0:00:45]} 50. f3 {[%clk 0:00:04]}  g4 {[%clk 0:00:43]} 51. Rb5+ {[%clk 0:00:03]}  Kg6 {[%clk 0:00:43]} 52. fxg4 {[%clk 0:00:03]}  hxg4 {[%clk 0:00:43]} 53. Rb6 {[%clk 0:00:04]}  Rc2+ {[%clk 0:00:42]} 54. Kf1 {[%clk 0:00:04]}  Kf5 {[%clk 0:00:42]} 55. Kg1 {[%clk 0:00:03]}  Ke4 {[%clk 0:00:42]} 56. Rb4+ {[%clk 0:00:03]}  Kf3 {[%clk 0:00:41]} 57. Rb3+ {[%clk 0:00:04]}  Ke4 {[%clk 0:00:41]} 58. Rb6 {[%clk 0:00:04]}  Kf3 {[%clk 0:00:41]} 59. Rb3+ {[%clk 0:00:05]}  Ke4 {[%clk 0:00:41]} 60. Rb6 {[%clk 0:00:05]}  Kf3 {[%clk 0:00:41]} 61. Rb3+ {[%clk 0:00:05]} 1/2-1/2


[Site "https://www.chess.com"]

[Event "Titled Tuesday Blitz January 17 Early 2023"]
[White "Erzhanov, Arman"]
[Black "Ismagilov, Damir"]
[WhiteFideId "4138821"]
[BlackFideId "34199982"]
[WhiteElo "2228"]
[BlackElo "2156"]
[Result "1-0"]
[Round "07"]
[TimeControl "180+2"]
[Date "2023.01.17"]
[WhiteClock "0:00:06"]
[BlackClock "0:00:13"]

1. e4 {[%clk 0:02:58]}  d6 {[%clk 0:02:59]} 2. d4 {[%clk 0:02:57]}  g6 {[%clk 0:02:59]} 3. Nc3 {[%clk 0:02:57]}  Bg7 {[%clk 0:03:00]} 4. f3 {[%clk 0:02:56]}  e5 {[%clk 0:02:57]} 5. Be3 {[%clk 0:02:56]}  Nc6 {[%clk 0:02:55]} 6. Nge2 {[%clk 0:02:55]}  exd4 {[%clk 0:02:49]} 7. Nxd4 {[%clk 0:02:55]}  Nge7 {[%clk 0:02:49]} 8. Qd2 {[%clk 0:02:53]}  Ne5 {[%clk 0:02:38]} 9. Bh6 {[%clk 0:02:47]}  O-O {[%clk 0:02:38]} 10. h4 {[%clk 0:02:46]}  c5 {[%clk 0:02:08]} 11. Ndb5 {[%clk 0:02:16]}  d5 {[%clk 0:02:07]} 12. Bxg7 {[%clk 0:02:05]}  Kxg7 {[%clk 0:02:01]} 13. Nxd5 {[%clk 0:01:58]}  Nxd5 {[%clk 0:01:56]} 14. Qxd5 {[%clk 0:01:47]}  Qxd5 {[%clk 0:01:35]} 15. exd5 {[%clk 0:01:46]}  a6 {[%clk 0:01:35]} 16. Nc3 {[%clk 0:01:38]}  Bf5 {[%clk 0:01:33]} 17. O-O-O {[%clk 0:01:38]}  h5 {[%clk 0:01:28]} 18. Ne4 {[%clk 0:01:37]}  Bxe4 {[%clk 0:01:26]} 19. fxe4 {[%clk 0:01:38]}  Rfe8 {[%clk 0:01:14]} 20. Be2 {[%clk 0:01:36]}  Rad8 {[%clk 0:00:55]} 21. Rhe1 {[%clk 0:01:36]}  Rd6 {[%clk 0:00:56]} 22. b3 {[%clk 0:01:32]}  b5 {[%clk 0:00:44]} 23. Kb2 {[%clk 0:01:31]}  Nd7 {[%clk 0:00:39]} 24. Bd3 {[%clk 0:01:28]}  Re5 {[%clk 0:00:38]} 25. c4 {[%clk 0:01:24]}  b4 {[%clk 0:00:38]} 26. Rf1 {[%clk 0:01:11]}  Nf6 {[%clk 0:00:29]} 27. Rf4 {[%clk 0:01:10]}  Re7 {[%clk 0:00:23]} 28. Rdf1 {[%clk 0:01:10]}  Ng4 {[%clk 0:00:23]} 29. Re1 {[%clk 0:00:40]}  Rf6 {[%clk 0:00:20]} 30. g3 {[%clk 0:00:36]}  Rd6 {[%clk 0:00:19]} 31. Kc2 {[%clk 0:00:36]}  Ne5 {[%clk 0:00:17]} 32. Ra1 {[%clk 0:00:32]}  a5 {[%clk 0:00:18]} 33. a3 {[%clk 0:00:33]}  Rf6 {[%clk 0:00:04]} 34. axb4 {[%clk 0:00:33]}  axb4 {[%clk 0:00:05]} 35. Ra5 {[%clk 0:00:33]}  Rc7 {[%clk 0:00:05]} 36. Rxf6 {[%clk 0:00:21]}  Kxf6 {[%clk 0:00:06]} 37. Ra6+ {[%clk 0:00:21]}  Kg7 {[%clk 0:00:05]} 38. Be2 {[%clk 0:00:20]}  f6 {[%clk 0:00:05]} 39. Kd2 {[%clk 0:00:19]}  Rc8 {[%clk 0:00:04]} 40. Bf1 {[%clk 0:00:18]}  Rc7 {[%clk 0:00:05]} 41. Bh3 {[%clk 0:00:18]}  Nf3+ {[%clk 0:00:05]} 42. Ke3 {[%clk 0:00:15]}  Nd4 {[%clk 0:00:06]} 43. d6 {[%clk 0:00:14]}  Rb7 {[%clk 0:00:06]} 44. Ra8 {[%clk 0:00:12]}  f5 {[%clk 0:00:04]} 45. exf5 {[%clk 0:00:12]}  gxf5 {[%clk 0:00:04]} 46. Kf4 {[%clk 0:00:12]}  Nxb3 {[%clk 0:00:03]} 47. Bxf5 {[%clk 0:00:12]}  Nd4 {[%clk 0:00:02]} 48. d7 {[%clk 0:00:12]}  Nc6 {[%clk 0:00:02]} 49. d8=Q {[%clk 0:00:12]}  Nxd8 {[%clk 0:00:02]} 50. Rxd8 {[%clk 0:00:13]}  Kf6 {[%clk 0:00:02]} 51. Rd6+ {[%clk 0:00:12]}  Ke7 {[%clk 0:00:02]} 52. Rc6 {[%clk 0:00:10]}  b3 {[%clk 0:00:02]} 53. Rxc5 {[%clk 0:00:11]}  b2 {[%clk 0:00:03]} 54. Bb1 {[%clk 0:00:11]}  Rb3 {[%clk 0:00:03]} 55. Rb5 {[%clk 0:00:11]}  Rc3 {[%clk 0:00:03]} 56. Rxb2 {[%clk 0:00:10]}  Rxc4+ {[%clk 0:00:03]} 57. Kg5 {[%clk 0:00:11]}  Rg4+ {[%clk 0:00:04]} 58. Kxh5 {[%clk 0:00:11]}  Rxg3 {[%clk 0:00:05]} 59. Rb5 {[%clk 0:00:11]}  Kf8 {[%clk 0:00:05]} 60. Be4 {[%clk 0:00:06]}  Re3 {[%clk 0:00:04]} 61. Bg6 {[%clk 0:00:04]}  Re1 {[%clk 0:00:04]} 62. Kh6 {[%clk 0:00:04]}  Rh1 {[%clk 0:00:03]} 63. h5 {[%clk 0:00:05]}  Rh2 {[%clk 0:00:04]} 64. Kh7 {[%clk 0:00:05]}  Rd2 {[%clk 0:00:03]} 65. h6 {[%clk 0:00:05]}  Rd7+ {[%clk 0:00:03]} 66. Kh8 {[%clk 0:00:06]}  Rd8 {[%clk 0:00:03]} 67. Rb7 {[%clk 0:00:05]}  Rc8 {[%clk 0:00:02]} 68. Rf7+ {[%clk 0:00:04]}  Ke8 {[%clk 0:00:02]} 69. Rc7+ {[%clk 0:00:04]}  Kd8 {[%clk 0:00:03]} 70. Rxc8+ {[%clk 0:00:05]}  Kxc8 {[%clk 0:00:04]} 71. Kg8 {[%clk 0:00:06]}  Kd7 {[%clk 0:00:05]} 72. h7 {[%clk 0:00:07]}  Kd6 {[%clk 0:00:05]} 73. h8=Q {[%clk 0:00:07]}  Kc5 {[%clk 0:00:06]} 74. Qe5+ {[%clk 0:00:07]}  Kb4 {[%clk 0:00:07]} 75. Qd5 {[%clk 0:00:07]}  Kc3 {[%clk 0:00:07]} 76. Qe4 {[%clk 0:00:05]}  Kb2 {[%clk 0:00:08]} 77. Qc4 {[%clk 0:00:05]}  Ka1 {[%clk 0:00:09]} 78. Qb4 {[%clk 0:00:01]}  Ka2 {[%clk 0:00:09]} 79. Bf5 {[%clk 0:00:02]}  Ka1 {[%clk 0:00:09]} 80. Kf7 {[%clk 0:00:03]}  Ka2 {[%clk 0:00:10]} 81. Ke6 {[%clk 0:00:04]}  Ka1 {[%clk 0:00:10]} 82. Kd5 {[%clk 0:00:04]}  Ka2 {[%clk 0:00:11]} 83. Kc4 {[%clk 0:00:05]}  Ka1 {[%clk 0:00:12]} 84. Kc3 {[%clk 0:00:06]}  Ka2 {[%clk 0:00:13]} 85. Qb2# {[%clk 0:00:06]} 1-0


[Site "https://www.chess.com"]

[Event "Titled Tuesday Blitz January 17 Early 2023"]
[White "Papayan, Oleg"]
[Black "Odegov, Artem"]
[WhiteFideId "4193911"]
[BlackFideId "34183644"]
[WhiteElo "2253"]
[BlackElo "2261"]
[Result "1-0"]
[Round "07"]
[TimeControl "180+2"]
[Date "2023.01.17"]
[WhiteClock "0:01:11"]
[BlackClock "0:00:02"]

1. e4 {[%clk 0:03:00]}  e6 {[%clk 0:02:57]} 2. d4 {[%clk 0:02:55]}  d5 {[%clk 0:02:56]} 3. Nc3 {[%clk 0:02:54]}  Bb4 {[%clk 0:02:53]} 4. e5 {[%clk 0:02:54]}  c5 {[%clk 0:02:54]} 5. a3 {[%clk 0:02:53]}  Bxc3+ {[%clk 0:02:54]} 6. bxc3 {[%clk 0:02:54]}  Ne7 {[%clk 0:02:55]} 7. Qg4 {[%clk 0:02:53]}  cxd4 {[%clk 0:02:53]} 8. cxd4 {[%clk 0:02:50]}  Qc7 {[%clk 0:02:53]} 9. Bd2 {[%clk 0:02:36]}  O-O {[%clk 0:02:50]} 10. Bd3 {[%clk 0:02:35]}  f5 {[%clk 0:02:23]} 11. exf6 {[%clk 0:02:34]}  Rxf6 {[%clk 0:02:23]} 12. Nf3 {[%clk 0:02:34]}  e5 {[%clk 0:02:21]} 13. Qg3 {[%clk 0:02:32]}  Nbc6 {[%clk 0:02:18]} 14. dxe5 {[%clk 0:02:27]}  Nf5 {[%clk 0:02:06]} 15. Qf4 {[%clk 0:02:11]}  Rf8 {[%clk 0:02:03]} 16. O-O {[%clk 0:02:10]}  Nfd4 {[%clk 0:02:01]} 17. Bxh7+ {[%clk 0:02:06]}  Kxh7 {[%clk 0:02:01]} 18. Qxf8 {[%clk 0:02:06]}  Bf5 {[%clk 0:00:17]} 19. Ng5+ {[%clk 0:02:03]}  Kg6 {[%clk 0:00:17]} 20. Qxa8 {[%clk 0:02:02]}  Nxe5 {[%clk 0:00:08]} 21. Qe8+ {[%clk 0:01:59]}  Kf6 {[%clk 0:00:03]} 22. Rfe1 {[%clk 0:01:41]}  Ng4 {[%clk 0:00:02]} 23. Qf8+ {[%clk 0:01:22]}  Kg6 {[%clk 0:00:02]} 24. Qh8 {[%clk 0:01:11]} 1-0


[Site "https://www.chess.com"]

[Event "Titled Tuesday Blitz January 17 Early 2023"]
[White "Rosenberg, Evan S"]
[Black "Mohamed Anees M"]
[WhiteFideId "2019299"]
[BlackFideId "35065815"]
[WhiteElo "1956"]
[BlackElo "2315"]
[Result "0-1"]
[Round "07"]
[TimeControl "180+2"]
[Date "2023.01.17"]
[WhiteClock "0:00:08"]
[BlackClock "0:01:22"]

1. d4 {[%clk 0:03:00]}  Nf6 {[%clk 0:02:58]} 2. Nf3 {[%clk 0:03:00]}  g6 {[%clk 0:02:58]} 3. Nc3 {[%clk 0:03:00]}  Bg7 {[%clk 0:02:59]} 4. e4 {[%clk 0:03:00]}  d6 {[%clk 0:02:59]} 5. Be2 {[%clk 0:03:00]}  O-O {[%clk 0:02:59]} 6. O-O {[%clk 0:03:01]}  c5 {[%clk 0:03:00]} 7. e5 {[%clk 0:02:48]}  Nfd7 {[%clk 0:02:54]} 8. Bg5 {[%clk 0:02:43]}  dxe5 {[%clk 0:02:51]} 9. dxe5 {[%clk 0:02:41]}  Nc6 {[%clk 0:02:37]} 10. e6 {[%clk 0:02:38]}  fxe6 {[%clk 0:02:35]} 11. Bc4 {[%clk 0:02:09]}  Nb6 {[%clk 0:02:34]} 12. Qe2 {[%clk 0:02:00]}  Rxf3 {[%clk 0:02:27]} 13. gxf3 {[%clk 0:01:59]}  Nd4 {[%clk 0:02:27]} 14. Qd3 {[%clk 0:01:39]}  Nxc4 {[%clk 0:02:27]} 15. Qxc4 {[%clk 0:01:39]}  Nxf3+ {[%clk 0:02:27]} 16. Kh1 {[%clk 0:01:39]}  Nxg5 {[%clk 0:02:28]} 17. Rad1 {[%clk 0:01:35]}  Bd7 {[%clk 0:02:20]} 18. Qxc5 {[%clk 0:01:30]}  Bc6+ {[%clk 0:02:17]} 19. f3 {[%clk 0:01:18]}  Nxf3 {[%clk 0:02:05]} 20. Rxd8+ {[%clk 0:01:15]}  Rxd8 {[%clk 0:02:06]} 21. Qxe7 {[%clk 0:00:40]}  Ng5+ {[%clk 0:02:01]} 22. Rf3 {[%clk 0:00:13]}  Bxf3+ {[%clk 0:01:59]} 23. Kg1 {[%clk 0:00:14]}  Nh3+ {[%clk 0:01:59]} 24. Kf1 {[%clk 0:00:14]}  Rf8 {[%clk 0:01:58]} 25. Ke1 {[%clk 0:00:14]}  Nf4 {[%clk 0:01:29]} 26. h4 {[%clk 0:00:11]}  Bf6 {[%clk 0:01:23]} 27. Qd6 {[%clk 0:00:09]}  Bxh4+ {[%clk 0:01:22]} 28. Kd2 {[%clk 0:00:08]}  Rd8 {[%clk 0:01:22]} 0-1


[Site "https://www.chess.com"]